{"text_format":"1","workbook":"xlsx","n_sheets":4,"sheets":["Winshuttle Use Only","Evolve Deployment Form","Data documents","Data"],"not_rendered":{"charts":0,"images":1,"macros":1,"external_links":0,"defined_names":23,"comments":0,"pivot_tables":0},"unopened":[],"bounds":{"document_bytes":16777216,"sheet_cells":100000,"rows_first":2000,"rows_last":500,"rows_between":2000,"halvings":0,"cell_chars":16384,"cell_head_chars":4096},"cells_cut":0,"cells_raw":0,"read":"whole","date_system":"1900"}

{"sheet":"Winshuttle Use Only","index":0,"n_rows":2,"n_cols":77,"rows_kept":2,"cut":false,"hidden":true,"merged":[]}
["GENERAL","Customer Name","Installation Name","Environment Type","Target Date for Installation","Purpose","Project Manager Name","Project Manager Email","SharePoint Admin Name","SharePoint Admin Email","SQL DBA Name","SQL DBA Email","Network Admin Name","Network Admin Email","SAP Basis Contact Name","SAP Basic Contact Email","Business Liaison Name","Business Liaison Email","SHAREPOINT","SP Farm Server Name 1","SP Farm Server Name 2","SP Farm Server Name 3","SP Farm Server Name 4","SP Farm Server Name 5","SP OS Version","SharePoint Version","SP Service Pack","SP Cumulative Update","SMTP Server Host Name","Winshuttle Only","Non-Winshuttle","WF Install Drive","SQL","SQL Host Name","SQL Instance Name","SQL Version","SQL Service Pack","SQL Alias","SAP","SAP GUI Version","SAP System ID","Client Number","SAP Server Type","Application Server Host","System Number","SAPIS","SAPIS Server Name 1","SAPIS Server Name 2","SAPIS Server Name 3","SAPIS Server Name 4","SAPIS Server Name 5","SAPIS OS Version","Installation Drive","COMPOSER","Composer Host Name","Composer OS Version","CmpInstallDrive","CmpAppIdentity","SERVICE ACCOUNTS","SP Farm Account","SP Install Account","SP Timer Job Account","SP App Pool Account","Workflow Admin Account","Workflow SQL Account","SAPIS Account","POST LMS CHANGES","User Governance URLs","Workflow URLs","Manager URL","Manager Port","Composer URL","LMS URL","LMS Install Drive","LMS Node Hosts","LMS Load Balanced","Winshuttle Admin Account"]
[null,{"$f":"IF('Evolve Deployment Form'!C10=ISBLANK(TRUE),\"\",'Evolve Deployment Form'!C10)","v":""},{"$f":"IF('Evolve Deployment Form'!C14=ISBLANK(TRUE),\"\",'Evolve Deployment Form'!C14)","v":""},{"$f":"IF('Evolve Deployment Form'!C18=ISBLANK(TRUE),\"\",'Evolve Deployment Form'!C18)","v":""},{"$f":"IF('Evolve Deployment Form'!C22=ISBLANK(TRUE),\"\",'Evolve Deployment Form'!C22)","v":"mm/dd/YYYY"},{"$f":"IF('Evolve Deployment Form'!C26=ISBLANK(TRUE),\"\",'Evolve Deployment Form'!C26)","v":""},{"$f":"IF('Evolve Deployment Form'!F10=ISBLANK(TRUE),\"\",'Evolve Deployment Form'!F10)","v":""},{"$f":"IF('Evolve Deployment Form'!I10=ISBLANK(TRUE),\"\",'Evolve Deployment Form'!I10)","v":""},{"$f":"IF('Evolve Deployment Form'!F14=ISBLANK(TRUE),\"\",'Evolve Deployment Form'!F14)","v":""},{"$f":"IF('Evolve Deployment Form'!I14=ISBLANK(TRUE),\"\",'Evolve Deployment Form'!I14)","v":""},{"$f":"IF('Evolve Deployment Form'!F18=ISBLANK(TRUE),\"\",'Evolve Deployment Form'!F18)","v":""},{"$f":"IF('Evolve Deployment Form'!I18=ISBLANK(TRUE),\"\",'Evolve Deployment Form'!I18)","v":""},{"$f":"IF('Evolve Deployment Form'!F22=ISBLANK(TRUE),\"\",'Evolve Deployment Form'!F22)","v":""},{"$f":"IF('Evolve Deployment Form'!I22=ISBLANK(TRUE),\"\",'Evolve Deployment Form'!I22)","v":""},{"$f":"IF('Evolve Deployment Form'!F26=ISBLANK(TRUE),\"\",'Evolve Deployment Form'!F26)","v":""},{"$f":"IF('Evolve Deployment Form'!I26=ISBLANK(TRUE),\"\",'Evolve Deployment Form'!I26)","v":""},{"$f":"IF('Evolve Deployment Form'!F28=ISBLANK(TRUE),\"\",'Evolve Deployment Form'!F28)","v":""},{"$f":"IF('Evolve Deployment Form'!I28=ISBLANK(TRUE),\"\",'Evolve Deployment Form'!I28)","v":""},null,{"$f":"IF('Evolve Deployment Form'!C33=ISBLANK(TRUE),\"\",'Evolve Deployment Form'!C33)","v":""},{"$f":"IF('Evolve Deployment Form'!C37=ISBLANK(TRUE),\"\",'Evolve Deployment Form'!C37)","v":""},{"$f":"IF('Evolve Deployment Form'!C41=ISBLANK(TRUE),\"\",'Evolve Deployment Form'!C41)","v":""},{"$f":"IF('Evolve Deployment Form'!C45=ISBLANK(TRUE),\"\",'Evolve Deployment Form'!C45)","v":""},{"$f":"IF('Evolve Deployment Form'!C49=ISBLANK(TRUE),\"\",'Evolve Deployment Form'!C49)","v":"http(s)://evolve-dev.FQDN"},{"$f":"IF('Evolve Deployment Form'!F33=ISBLANK(TRUE),\"\",'Evolve Deployment Form'!F33)","v":""},{"$f":"IF('Evolve Deployment Form'!F37=ISBLANK(TRUE),\"\",'Evolve Deployment Form'!F37)","v":"Minimum of 16GB"},{"$f":"IF('Evolve Deployment Form'!F41=ISBLANK(TRUE),\"\",'Evolve Deployment Form'!F41)","v":"Minimum of 8 Cores"},{"$f":"IF('Evolve Deployment Form'!F45=ISBLANK(TRUE),\"\",'Evolve Deployment Form'!F45)","v":"Minimum of 120GB"},{"$f":"IF('Evolve Deployment Form'!#REF!=ISBLANK(TRUE),\"\",'Evolve Deployment Form'!#REF!)","v":{"$error":"#REF!"}},{"$f":"IF('Evolve Deployment Form'!I37=ISBLANK(TRUE),\"\",'Evolve Deployment Form'!I37)","v":""},{"$f":"IF('Evolve Deployment Form'!I49=ISBLANK(TRUE),\"\",'Evolve Deployment Form'!I49)","v":""},{"$f":"IF('Evolve Deployment Form'!I41=ISBLANK(TRUE),\"\",'Evolve Deployment Form'!I41)","v":""},null,{"$f":"IF('Evolve Deployment Form'!C74=ISBLANK(TRUE),\"\",'Evolve Deployment Form'!C74)","v":""},{"$f":"IF('Evolve Deployment Form'!#REF!=ISBLANK(TRUE),\"\",'Evolve Deployment Form'!#REF!)","v":{"$error":"#REF!"}},{"$f":"IF('Evolve Deployment Form'!C82=ISBLANK(TRUE),\"\",'Evolve Deployment Form'!C82)","v":""},{"$f":"IF('Evolve Deployment Form'!F82=ISBLANK(TRUE),\"\",'Evolve Deployment Form'!F82)","v":"Minimum of 16GB"},{"$f":"IF('Evolve Deployment Form'!I74=ISBLANK(TRUE),\"\",'Evolve Deployment Form'!I74)","v":"Minimum of 120GB"},null,{"$f":"IF('Evolve Deployment Form'!C93=ISBLANK(TRUE),\"\",'Evolve Deployment Form'!C93)","v":""},{"$f":"IF('Evolve Deployment Form'!C97=ISBLANK(TRUE),\"\",'Evolve Deployment Form'!C97)","v":""},{"$f":"IF('Evolve Deployment Form'!C101=ISBLANK(TRUE),\"\",'Evolve Deployment Form'!C101)","v":""},{"$f":"IF('Evolve Deployment Form'!F93=ISBLANK(TRUE),\"\",'Evolve Deployment Form'!F93)","v":""},{"$f":"IF('Evolve Deployment Form'!F97=ISBLANK(TRUE),\"\",'Evolve Deployment Form'!F97)","v":""},{"$f":"IF('Evolve Deployment Form'!F101=ISBLANK(TRUE),\"\",'Evolve Deployment Form'!F101)","v":""},null,{"$f":"IF('Evolve Deployment Form'!C58=ISBLANK(TRUE),\"\",'Evolve Deployment Form'!C58)","v":""},{"$f":"IF('Evolve Deployment Form'!C62=ISBLANK(TRUE),\"\",'Evolve Deployment Form'!C62)","v":""},{"$f":"IF('Evolve Deployment Form'!#REF!=ISBLANK(TRUE),\"\",'Evolve Deployment Form'!#REF!)","v":{"$error":"#REF!"}},{"$f":"IF('Evolve Deployment Form'!#REF!=ISBLANK(TRUE),\"\",'Evolve Deployment Form'!#REF!)","v":{"$error":"#REF!"}},{"$f":"IF('Evolve Deployment Form'!#REF!=ISBLANK(TRUE),\"\",'Evolve Deployment Form'!#REF!)","v":{"$error":"#REF!"}},{"$f":"IF('Evolve Deployment Form'!F58=ISBLANK(TRUE),\"\",'Evolve Deployment Form'!F58)","v":""},{"$f":"IF('Evolve Deployment Form'!F62=ISBLANK(TRUE),\"\",'Evolve Deployment Form'!F62)","v":"Minimum of 16GB"},null,{"$f":"IF('Evolve Deployment Form'!#REF!=ISBLANK(TRUE),\"\",'Evolve Deployment Form'!#REF!)","v":{"$error":"#REF!"}},{"$f":"IF('Evolve Deployment Form'!#REF!=ISBLANK(TRUE),\"\",'Evolve Deployment Form'!#REF!)","v":{"$error":"#REF!"}},{"$f":"IF('Evolve Deployment Form'!#REF!=ISBLANK(TRUE),\"\",'Evolve Deployment Form'!#REF!)","v":{"$error":"#REF!"}},{"$f":"IF('Evolve Deployment Form'!#REF!=ISBLANK(TRUE),\"\",'Evolve Deployment Form'!#REF!)","v":{"$error":"#REF!"}},null,{"$f":"IF('Evolve Deployment Form'!C108=ISBLANK(TRUE),\"\",'Evolve Deployment Form'!C108)","v":"Domain\\UserName"},{"$f":"IF('Evolve Deployment Form'!#REF!=ISBLANK(TRUE),\"\",'Evolve Deployment Form'!#REF!)","v":{"$error":"#REF!"}},{"$f":"IF('Evolve Deployment Form'!#REF!=ISBLANK(TRUE),\"\",'Evolve Deployment Form'!#REF!)","v":{"$error":"#REF!"}},{"$f":"IF('Evolve Deployment Form'!#REF!=ISBLANK(TRUE),\"\",'Evolve Deployment Form'!#REF!)","v":{"$error":"#REF!"}},{"$f":"IF('Evolve Deployment Form'!F108=ISBLANK(TRUE),\"\",'Evolve Deployment Form'!F108)","v":"Domain\\UserName"},{"$f":"IF('Evolve Deployment Form'!#REF!=ISBLANK(TRUE),\"\",'Evolve Deployment Form'!#REF!)","v":{"$error":"#REF!"}},{"$f":"IF('Evolve Deployment Form'!#REF!=ISBLANK(TRUE),\"\",'Evolve Deployment Form'!#REF!)","v":{"$error":"#REF!"}},null,{"$f":"IF('Evolve Deployment Form'!#REF!=ISBLANK(TRUE),\"\",'Evolve Deployment Form'!#REF!)","v":{"$error":"#REF!"}},{"$f":"IF('Evolve Deployment Form'!#REF!=ISBLANK(TRUE),\"\",'Evolve Deployment Form'!#REF!)","v":{"$error":"#REF!"}},{"$f":"IF('Evolve Deployment Form'!I58=ISBLANK(TRUE),\"\",'Evolve Deployment Form'!I58)","v":""},{"$f":"IF('Evolve Deployment Form'!#REF!=ISBLANK(TRUE),\"\",'Evolve Deployment Form'!#REF!)","v":{"$error":"#REF!"}},{"$f":"IF('Evolve Deployment Form'!#REF!=ISBLANK(TRUE),\"\",'Evolve Deployment Form'!#REF!)","v":{"$error":"#REF!"}},{"$f":"IF('Evolve Deployment Form'!#REF!=ISBLANK(TRUE),\"\",'Evolve Deployment Form'!#REF!)","v":{"$error":"#REF!"}},{"$f":"IF('Evolve Deployment Form'!#REF!=ISBLANK(TRUE),\"\",'Evolve Deployment Form'!#REF!)","v":{"$error":"#REF!"}},{"$f":"IF('Evolve Deployment Form'!#REF!=ISBLANK(TRUE),\"\",'Evolve Deployment Form'!#REF!)","v":{"$error":"#REF!"}},{"$f":"IF('Evolve Deployment Form'!#REF!=ISBLANK(TRUE),\"\",'Evolve Deployment Form'!#REF!)","v":{"$error":"#REF!"}},{"$f":"IF('Evolve Deployment Form'!#REF!=ISBLANK(TRUE),\"\",'Evolve Deployment Form'!#REF!)","v":{"$error":"#REF!"}}]

{"sheet":"Evolve Deployment Form","index":1,"n_rows":108,"n_cols":9,"rows_kept":108,"cut":false,"hidden":false,"merged":[[104,0,104,9],[89,0,89,9],[70,0,70,9],[54,0,54,9],[3,6,3,8],[6,0,6,9],[29,0,29,9],[4,6,4,8],[102,2,102,3],[51,2,51,3],[25,2,27,2]]}
[]
[]
[]
[null,null,null,null,null,"Prepared By: "]
[null,null,null,null,null,null,"Covers Versions: 20.x"]
[]
["General Information and Contact Information"]
[]
[]
["Customer Name",null,null,"Project Manager Name",null,null,"Email"]
[]
[]
[]
["Product Type",null,null,"Winshuttle Admin Name",null,null,"Email"]
[]
[]
[]
["Environment Type",null,null,"SQL DBA Name",null,null,"Email"]
[]
[]
[]
["Target Date for Installation",null,"mm/dd/YYYY","Network Admin Name",null,null,"Email"]
[]
[]
[]
["Winshuttle License Key",null,null,"SAP Basis Contact Name",null,null,"Email"]
[]
[null,null,null,"Business User Name",null,null,"Email"]
[]
["Evolve App Server Environment Information"]
[]
[]
["Evolve App Server Names",null,null,"OS Version",null,null,"Protocol"]
[]
[]
[]
["WFE's (if any)",null,null,"Memory Allocated (RAM)",null,"Minimum of 16GB","SSL Certifcate ready?"]
[]
[]
[]
["Port Number",null,null,"No. Of Cores",null,"Minimum of 8 Cores","TLS Version"]
[]
[]
[]
["SMTP Server Host Name",null,null,"Total Storage in C Drive",null,"Minimum of 120GB","User Authentication"]
[]
[]
[]
["Evolve Friendly URL (if any)",null,"http(s)://evolve-dev.FQDN","Other Drives (if any)",null,null,"SAML 2.0 Auth Type",null,""]
[]
["*Please request the following documents from Winshuttle for SAML"]
[]
[]
[]
["Worker Environment Information"]
[]
[]
["Evolve Worker Server Names",null,null,"OS Version",null,null,"User Authentication"]
[]
[]
[]
["Worker WFE's (if any)",null,null,"Memory Allocated (RAM)",null,"Minimum of 16GB","SAML 2.0 Authentication"]
[]
[]
[]
[]
["TLS Version",null,null,"No. Of Cores",null,"Minimum of 8 Cores","Total Storage in C Drive",null,"Minimum of 120GB"]
[]
[]
[]
["SQL Server Environment Information"]
[]
[]
["SQL Server Name",null,null,"OS Version",null,null,"Sys Disk Space (C Drive)",null,"Minimum of 120GB"]
[]
[]
[]
["Instance or Alias Name",null,null,"No. Of Cores",null,"Minimum of 8 Cores","Temp Disk Space (D Drive)",null,"Minimum of 120GB"]
[]
[]
[]
["SQL Server Version",null,null,"Memory Allocated (RAM)",null,"Minimum of 16GB","Log Disk Space (E Drive)",null,"Minimum of 120GB"]
[]
[]
[]
["SQL Always ON",null,null,"TLS Version",null,null,"Data Disk Space (F Drive)",null,"Minimum of 140GB"]
[]
[]
[]
["SAP Application Server Environment Information"]
[]
[]
["SAP GUI Version on Evolve",null,null,"Server Type",null,null,"SAP System"]
[]
[]
[]
["SAP System ID",null,null,"App or Message Server Host",null,null,"SNC Enable"]
[]
[]
[]
["Client Number",null,null,"Instance Number",null,null,"SAP  Logon Type",null,""]
["*Please request the following documents from Winshuttle for SNC configuration:"]
[]
[]
["Service Accounts (Domain\\Username)"]
[]
[]
["Installation or Setup Account",null,"Domain\\UserName","Evolve AppPool Account",null,"Domain\\UserName"]

{"sheet":"Data documents","index":2,"n_rows":22,"n_cols":5,"rows_kept":22,"cut":false,"hidden":true,"merged":[]}
["SNC Enabled",null,"SNC Disabled",null,"SAML2.0_Azure"]
["Kerberos - Activate SNC",null,"Credentials based",null,"1. Evolve SAML Authentication with Azure - Part 1.docx\n2. Evolve SAML Authentication with Azure IDP - Part 2.docx"]
["EnterprisePortal_SPNego",null,"EP Portal - User Credentials"]
["SAP Trust",null,"Siteminder",null,"SAML_Auth0"]
["Cybersafe",null,null,null,"1. SAML setup with Auth0 - Part 1.docx\n2. SAML setup with Auth0 _IDP_Documentation - Part 2.docx"]
["X.509 ",null,"EP Portal (User Credentials)"]
[null,null,"EnterprisePortal_UserCredentials.docx","* add all documents to one line","SAML_OKTA"]
["Kerberos_ Activate SNC",null,null,null,"1. SAML Setup With OKTA as IDP - Part 1.docx\n2. SAML Setup With OKTA_IDP_Documentation - Part 2.docx"]
["Kerberos(ActivateSNC).docx","* add all documents to one line","Siteminder"]
[null,null,"Siteminder.docx","* add all documents to one line","SAML_ADFS"]
[null,null,null,null,"1.SAML with ADFS configuration.docx"]
["EnterprisePortal_SPNego"]
["EnterprisePortal_SPNego.docx","* add all documents to one line"]
[]
["SAP Trust"]
["1. SAPTrust.docx\n2. SAPTrust_SNCSetApproach.docx\n3. SAPTrust_RegexApproach.docx","* add all documents to one line"]
[]
["Cybersafe"]
["CyberSafe.docx","* add all documents to one line"]
[]
["X.509 "]
["X.509.docx","* add all documents to one line"]

{"sheet":"Data","index":3,"n_rows":47,"n_cols":1,"rows_kept":47,"cut":false,"hidden":true,"merged":[]}
["Environment Type"]
["Quality"]
["Development"]
["Production"]
[]
[]
["Windows Server Version"]
["Windows Server 2016"]
["Windows Server 2019"]
[]
[]
["Yes/No"]
["Yes"]
["No"]
[]
["SQL Server Version"]
["SQL Server 2017"]
["SQL Server 2019"]
[]
["SAP GUI Version"]
["7.60 onwards"]
[]
["SAP System"]
["ECC"]
["S4 HANA"]
[]
["Protocol"]
["HTTP"]
["HTTPS"]
[]
[]
["Product Type"]
["Evolve"]
["Studio Manager"]
[]
[]
["User Authentication"]
["Windows"]
["SAML 2.0"]
["OAuth 2.0"]
[]
[]
["SAML Authentication Types"]
["Azure"]
["Auth0"]
["OKTA"]
["ADFS"]